{"text_format":"1","workbook":"xlsx","n_sheets":3,"sheets":["Programme","Information Sciences","Selections"],"not_rendered":{"charts":0,"images":6,"macros":1,"external_links":0,"defined_names":7,"comments":0,"pivot_tables":0},"unopened":[],"bounds":{"document_bytes":16777216,"sheet_cells":100000,"rows_first":2000,"rows_last":500,"rows_between":2000,"halvings":0,"cell_chars":16384,"cell_head_chars":4096},"cells_cut":0,"cells_raw":0,"read":"whole","date_system":"1900"}

{"sheet":"Programme","index":0,"n_rows":6,"n_cols":13,"rows_kept":6,"cut":false,"hidden":false,"merged":[[1,12,2,15]]}
[null,"Request for approval of Master's Programme Information Sciences"]
[null,"Please select your starting year of the Master's programme.",null,null,null,null,null,null,null,null,null,null,"Administrator tools"]
[null,"Then click on the 'Generate programme approval request form' button."]
[null,null,null,null,null,null,null,"Form last updated: 4-9-2018"]
[]
[null,"Starting year:","Please Select…"]

{"sheet":"Information Sciences","index":1,"n_rows":359,"n_cols":9,"rows_kept":359,"cut":false,"hidden":true,"merged":[[261,1,261,7],[262,1,262,7],[247,4,247,7],[248,4,248,7],[249,4,249,7],[250,4,250,7],[251,4,251,7],[257,1,257,7],[258,1,258,7],[259,1,259,7],[260,1,260,7],[230,2,230,7],[231,2,231,7],[232,2,232,7],[233,2,233,7],[242,4,242,7],[243,4,243,7],[244,4,244,7],[245,4,245,7],[246,4,246,7],[189,2,189,7],[190,2,190,7],[191,3,191,4],[191,6,191,7],[222,4,222,7],[223,4,223,7],[224,4,224,7],[225,4,225,7],[229,2,229,7],[160,4,160,7],[166,1,166,7],[167,1,167,7],[168,1,168,7],[169,1,169,7],[170,1,170,7],[171,1,171,7],[187,2,187,7],[188,2,188,7],[151,4,151,7],[152,4,152,7],[153,4,153,7],[154,4,154,7],[155,4,155,7],[156,4,156,7],[157,4,157,7],[158,4,158,7],[159,4,159,7],[131,4,131,7],[132,4,132,7],[133,4,133,7],[134,4,134,7],[138,2,138,7],[139,2,139,7],[140,2,140,7],[141,2,141,7],[142,2,142,7],[78,1,78,7],[79,1,79,7],[80,1,80,7],[81,1,81,7],[98,2,98,7],[99,2,99,7],[100,2,100,7],[101,2,101,7],[102,3,102,4],[102,6,102,7],[64,4,64,7],[65,4,65,7],[66,4,66,7],[67,4,67,7],[68,4,68,7],[69,4,69,7],[70,4,70,7],[76,1,76,7],[77,1,77,7],[44,4,44,7],[48,2,48,7],[49,2,49,7],[50,2,50,7],[51,2,51,7],[52,2,52,7],[61,4,61,7],[62,4,62,7],[63,4,63,7],[8,2,8,7],[9,2,9,7],[10,2,10,7],[11,2,11,7],[12,3,12,4],[12,6,12,7],[41,4,41,7],[42,4,42,7],[43,4,43,7],[316,4,316,7],[317,4,317,7],[318,4,318,7],[319,4,319,7],[323,2,323,7],[280,2,280,7],[281,2,281,7],[282,2,282,7],[283,2,283,7],[284,3,284,4],[284,6,284,7],[337,4,337,7],[338,4,338,7],[339,4,339,7],[340,4,340,7],[341,4,341,7],[324,2,324,7],[325,2,325,7],[326,2,326,7],[327,2,327,7],[336,4,336,7],[352,1,352,7],[353,1,353,7],[354,1,354,7],[355,1,355,7],[356,1,356,7],[342,4,342,7],[343,4,343,7],[344,4,344,7],[345,4,345,7],[351,1,351,7]]}
["Laat deze kolom leeg, behalve de jaartallen en de scheidingswoorden"]
["2014"]
[null,"Request for approval Master's Programme Information Sciences (Cohort 2014)"]
[null,"This form can be used to submit your master's programme for approval by the examination board"]
[]
[]
[null,"Please complete the form and discuss your programme with your student advisor. Afterwards send via e-mail to: fnwi.examcies@science.ru.nl"]
[]
[null,"Student name:"]
[null,"Student number:"]
[null,"RU E-mail:"]
[null,"Phone number:"]
[null,"Cohort:","2014","Double MA:",null,"No","<name of other master programme>",null,"┐"]
[null,null,null,null,null,null,null,null,"│"]
[null,"* Check the transition rules given at the bottom of this form. Typically used when no longer able to complete the course marked.",null,null,null,null,null,null,"│"]
[null,"* When doing a double master programma, indicate which courses will receive an exemption (e.g., because of a grade on another diploma).",null,null,null,null,null,"─ ─ ─ ─ >","│"]
[null,null,null,null,null,null,null,null,"│"]
[null,"Compulsory courses specialisation (12 EC)",null,null,null,"Replaced by:",null,null,"↓"]
[null,"Course code","Course name","EC","Taken?","Course code","Course name","EC","EX"]
[null,"NWI-IMI002 *","Architectural System Design *",6,"Yes"]
[null,"NWI-I00152","Research Methods",3,"Yes"]
[null,"NWI-IMI003","Philosophy and Ethics for CS and IS",3,"Yes"]
[null,null,"Sum:",{"$f":"SUMIFS(D20:D22,H20:H22,\"\",E20:E22,\"Yes\")+SUM(H20:H22)","v":12}]
[]
[null,"Specialisation Electives (6 EC)",null,null,null,"Replaced by:"]
[null,"Course code","Course name","EC","Taken?","Course code","Course name","EC","EX"]
[null,"NWI-I00041","Information Retrieval",6,"No"]
[null,"NWI-IMK003 *","Business Rules Specification and Application *",3,"No"]
[null,"NWI-IMK009 *","Business Service Innovation *",3,"No"]
[null,null,"Sum:",{"$f":"SUMIFS(D27:D29,H27:H29,\"\",E27:E29,\"Yes\")+SUM(H27:H29)","v":0}]
[]
[null,"Electives (12 EC)"]
[null,"Course code","Course name","EC","Taken?","Course code","Course name","EC","EX"]
[null,"NWI-I00153","Security in Organisations",6,"No"]
[null,"NWI-IMC006","Law in Cyberspace",6,"No"]
[null,"NWI-IMC021","System Development Management",6,"No"]
[null,"NWI-I00035","Foundations of Information Systems",6,"No"]
[null,null,"Sum:",{"$f":"SUMIFS(D34:D37,H34:H37,\"\",E34:E37,\"Yes\")+SUM(H34:H37)","v":0}]
[]
[null,"Free Electives (6 EC) (Courses that do not overlap with the rest of the programme)"]
[null,"Course code","Course name","EC","Comments:",null,null,null,"EX"]
[]
[]
[]
[]
[null,null,"Sum:",{"$f":"SUM(D42:D45)","v":0}]
[]
[null,null,"Master Thesis Information Sciences (NWI-IMK007) (24 EC)"]
[null,"Title:","(Leave empty if unknown)"]
[null,"Supervisor:","(Leave empty if unknown)"]
[null,"Department:","(Leave empty if unknown)"]
[null,"2nd Supervisor:","(Leave empty if unknown)"]
[null,"Department:","(Leave empty if unknown)"]
[null,null,"Total:",24]
[]
[null,"Total EC (60)",null,{"$f":"D23+D30+D38+D46+D54","v":36}]
[]
[null,"Honours ('judicium') is awarded  based on the nominal number of 60 ec required for the examination."]
[]
[null,"Extra curricular courses (above 120 EC); these will be mentioned on your course list"]
[null,"Course code","Course name","EC","Comments:",null,null,null,"EX"]
[]
[]
[]
[]
[]
[]
[]
[]
[]
[]
[null,null,"Sum:",{"$f":"SUM(D62:D71)","v":0}]
[]
[null,"Total EC overall:",null,{"$f":"D56+D72","v":36}]
[null,"#pagebreakinhetwit"]
[null,"Comments:"]
[]
[]
[]
[]
[]
[]
[]
[null,"Transition Rules - follow the rules below if you can no longer comply to the prescribed master structure because of course changes"]
[]
[null,"Old Course",null,null,null,"Replacement Course"]
[null,"Code","Course name","EC",null,"Code","Course Name","EC"]
[null,"NWI-IMI002","Architectural System Design",6,null,"NWI-IMI004","Software Development Entrepreneurship",6]
[null,"NWI-IMK003","Business Rules Specification and Appl.",3,null,"<no longer offered>"]
[null,"NWI-IMK009","Business Service Innovation",3,null,"<no longer offered>"]
["#scheidingswoordmeteenhashtag"]
["2015"]
[null,"Request for approval Master's Programme Information Sciences (Cohort 2015)"]
[null,"This form can be used to submit your master's programme for approval by the examination board"]
[]
[]
[null,"Please complete the form and discuss your programme with your student advisor. Afterwards send via e-mail to: fnwi.examcies@science.ru.nl"]
[]
[null,"Student name:"]
[null,"Student number:"]
[null,"RU E-mail:"]
[null,"Phone number:"]
[null,"Cohort:","2015","Double MA:",null,"No","<name of other master programme>",null,"┐"]
[null,null,null,null,null,null,null,null,"│"]
[null,"* Check the transition rules given at the bottom of this form. Typically used when no longer able to complete the course marked.",null,null,null,null,null,null,"│"]
[null,"* When doing a double master programma, indicate which courses will receive an exemption (e.g., because of a grade on another diploma).",null,null,null,null,null,"─ ─ ─ ─ >","│"]
[null,null,null,null,null,null,null,null,"│"]
[null,"Compulsory courses specialisation (12 EC)",null,null,null,"Replaced by:",null,null,"↓"]
[null,"Course code","Course name","EC","Taken?","Course code","Course name","EC","EX"]
[null,"NWI-IMI004","Software Development Entrepreneurship",6,"Yes"]
[null,"NWI-I00152","Research Methods",3,"Yes"]
[null,"NWI-IMI003","Philosophy and Ethics for CS and IS",3,"Yes"]
[null,null,"Sum:",{"$f":"SUMIFS(D110:D112,H110:H112,\"\",E110:E112,\"Yes\")+SUM(H110:H112)","v":12}]
[]
[null,"Specialisation Electives (6 EC)",null,null,null,"Replaced by:"]
[null,"Course code","Course name","EC","Taken?","Course code","Course name","EC","EX"]
[null,"NWI-I00041","Information Retrieval",6,"No"]
[null,"NWI-IMK003 *","Business Rules Specification and Application *",3,"No"]
[null,"NWI-IMK009 *","Business Service Innovation *",3,"No"]
[null,null,"Sum:",{"$f":"SUMIFS(D117:D119,H117:H119,\"\",E117:E119,\"Yes\")+SUM(H117:H119)","v":0}]
[]
[null,"Electives (12 EC)"]
[null,"Course code","Course name","EC","Taken?","Course code","Course name","EC","EX"]
[null,"NWI-I00153","Security in Organisations",6,"No"]
[null,"NWI-IMC006","Law in Cyberspace",6,"No"]
[null,"NWI-IMC021","System Development Management",6,"No"]
[null,"NWI-I00035","Foundations of Information Systems",6,"No"]
[null,null,"Sum:",{"$f":"SUMIFS(D124:D127,H124:H127,\"\",E124:E127,\"Yes\")+SUM(H124:H127)","v":0}]
[]
[null,"Free Electives (6 EC) (Courses that do not overlap with the rest of the programme)"]
[null,"Course code","Course name","EC","Comments:",null,null,null,"EX"]
[]
[]
[]
[]
[null,null,"Sum:",{"$f":"SUM(D132:D135)","v":0}]
[]
[null,null,"Master Thesis Information Sciences (NWI-IMK007) (24 EC)"]
[null,"Title:","(Leave empty if unknown)"]
[null,"Supervisor:","(Leave empty if unknown)"]
[null,"Department:","(Leave empty if unknown)"]
[null,"2nd Supervisor:","(Leave empty if unknown)"]
[null,"Department:","(Leave empty if unknown)"]
[null,null,"Total:",24]
[]
[null,"Total EC (60)",null,{"$f":"D113+D120+D128+D136+D144","v":36}]
[]
[null,"Honours ('judicium') is awarded  based on the nominal number of 60 ec required for the examination."]
[]
[null,"Extra curricular courses (above 120 EC); these will be mentioned on your course list"]
[null,"Course code","Course name","EC","Comments:",null,null,null,"EX"]
[]
[]
[]
[]
[]
[]
[]
[]
[]
[]
[null,null,"Sum:",{"$f":"SUM(D152:D161)","v":0}]
[]
[null,"Total EC overall:",null,{"$f":"D146+D162","v":36}]
[null,"#pagebreakinhetwit"]
[null,"Comments:"]
[]
[]
[]
[]
[]
[]
[]
[null,"Transition Rules - follow the rules below if you can no longer comply to the prescribed master structure because of course changes"]
[]
[null,"Old Course",null,null,null,"Replacement Course"]
[null,"Code","Course name","EC",null,"Code","Course Name","EC"]
[null,"NWI-IMK003","Business Rules Specification and Appl.",3,null,"<no longer offered>"]
[null,"NWI-IMK009","Business Service Innovation",3,null,"<no longer offered>"]
["#scheidingswoordmeteenhashtag"]
["2016,2017"]
[null,"Request for approval Master's Programme Information Sciences (Cohort 2016-2017)"]
[null,"This form can be used to submit your master's programme for approval by the examination board"]
[]
[]
[null,"Please complete the form and discuss your programme with your student advisor. Afterwards send via e-mail to: fnwi.examcies@science.ru.nl"]
[]
[null,"Student name:"]
[null,"Student number:"]
[null,"RU E-mail:"]
[null,"Phone number:"]
[null,"Cohort:",null,"Double MA:",null,"No","<name of other master programme>",null,"┐"]
[null,null,null,null,null,null,null,null,"│"]
[null,"* Check the transition rules given at the bottom of this form. Typically used when no longer able to complete the course marked.",null,null,null,null,null,null,"│"]
[null,"* When doing a double master programma, indicate which courses will receive an exemption (e.g., because of a grade on another diploma).",null,null,null,null,null,"─ ─ ─ ─ >","│"]
[null,null,null,null,null,null,null,null,"│"]
[null,"Mandatory courses (15 EC)",null,null,null,"Replaced by:",null,null,"↓"]
[null,"Course code","Course name","EC","Taken?","Course code","Course name","EC","EX"]
[null,"NWI-IMK010","System Approaches to Info. and Org.",3,"Yes"]
[null,"NWI-I00152","Research Methods",3,"Yes"]
[null,"NWI-IMI003","Philosophy and Ethics for CS and IS",3,"Yes"]
[null,"Choose exactly 1 of the following 2 courses"]
[null,"NWI-IMI004","Software Development Entrepreneurship",6,"No"]
[null,"NWI-IMC021","System Development Management",6,"No"]
[null,null,"Sum:",{"$f":"SUMIFS(D199:D204,H199:H204,\"\",E199:E204,\"Yes\")+SUM(H199:H204)","v":9}]
[]
[null,"Elective course package (18 EC) (Choose exactly 1 of the 18 EC course packages)",null,null,null,"Replaced by:"]
[null,"Course package: Security & Privacy (18 EC)"]
[null,"Course code","Course name","EC","Taken?","Course code","Course name","EC","EX"]
[null,"NWI-I0053","Security in Organisations",6,"No"]
[null,"NWI-IMC006","Law in Cyberspace",6,"No"]
[null,"MAN-MST020","Strategic Scenarios in Business Models",6,"No"]
[null,"Course package: Aligning Business and IT (18 EC)"]
[null,"NWI-I00041 *","Information Retrieval *",6,"No"]
[null,"Choose exactly 2 of the following 3 courses"]
[null,"MAN-MOD002A","Organisational Change",6,"No"]
[null,"MAN-MOD001","Organisation Design",6,"No"]
[null,"MAN-MOD008","Intervention in Organisations",6,"No"]
[null,null,"Sum:",{"$f":"SUMIFS(D210:D218,H210:H218,\"\",E210:E218,\"Yes\")+SUM(H210:H218)","v":0}]
[]
[null,"Free Electives (6 EC) (Courses that do not overlap with the rest of the programme)"]
[null,"Course code","Course name","EC","Comments:",null,null,null,"EX"]
[]
[]
[]
[]
[null,null,"Sum:",{"$f":"SUM(D223:D226)","v":0}]
[]
[null,null,"Master Thesis Information Sciences (NWI-IMK011) (21 EC)"]
[null,"Title:","(Leave empty if unknown)"]
[null,"Supervisor:","(Leave empty if unknown)"]
[null,"Department:","(Leave empty if unknown)"]
[null,"2nd Supervisor:","(Leave empty if unknown)"]
[null,"Department:","(Leave empty if unknown)"]
[null,null,"Total:",21]
[]
[null,"Total EC (60)",null,{"$f":"D205+D219+D227+D235","v":30}]
[]
[null,"Honours ('judicium') is awarded  based on the nominal number of 60 ec required for the examination."]
[]
[null,"Extra curricular courses (above 120 EC); these will be mentioned on your course list"]
[null,"Course code","Course name","EC","Comments:",null,null,null,"EX"]
[]
[]
[]
[]
[]
[]
[]
[]
[]
[]
[null,null,"Sum:",{"$f":"SUM(D243:D252)","v":0}]
[]
[null,"Total EC overall:",null,{"$f":"D237+D253","v":30}]
[null,"#pagebreakinhetwit"]
[null,"Comments:"]
[]
[]
[]
[]
[]
[]
[]
[null,"Transition Rules - follow the rules below if you can no longer comply to the prescribed master structure because of course changes"]
[]
[null,"Old Course",null,null,null,"Replacement Course"]
[null,"Code","Course name","EC",null,"Code","Course Name","EC"]
[null,"NWI-I00041 1","Information Retrieval 1",6,null,"LET-REMA-LCEX06","Text Mining",6]
[null,"LET-REMA-LCEX06","Text Mining",6,null,"LET-REMA-LCEX06","Text and Multimedia Mining",6]
[]
[null,"1 Only for students who started in 2016 and already took the 'Text Mining' course (which name later changed to 'Text and Multimedia Mining') "]
["#scheidingswoordmeteenhashtag"]
["2018"]
[null,"Request for approval Master's Programme Information Sciences (Cohort 2018)"]
[null,"This form can be used to submit your master's programme for approval by the examination board"]
[]
[]
[null,"Please complete the form and discuss your programme with your student advisor. Afterwards send via e-mail to: fnwi.examcies@science.ru.nl"]
[]
[null,"Student name:"]
[null,"Student number:"]
[null,"RU E-mail:"]
[null,"Phone number:"]
[null,"Cohort:",null,"Double MA:",null,"No","<name of other master programme>",null,"┐"]
[null,null,null,null,null,null,null,null,"│"]
[null,"* Check the transition rules given at the bottom of this form. Typically used when no longer able to complete the course marked.",null,null,null,null,null,null,"│"]
[null,"* When doing a double master programma, indicate which courses will receive an exemption (e.g., because of a grade on another diploma).",null,null,null,null,null,"─ ─ ─ ─ >","│"]
[null,null,null,null,null,null,null,null,"│"]
[null,"Mandatory courses (18 EC)",null,null,null,"Replaced by:",null,null,"↓"]
[null,"Course code","Course name","EC","Taken?","Course code","Course name","EC","EX"]
[null,"NWI-IMK010","System Approaches to Info. and Org.",3,"Yes"]
[null,"NWI-IMK012","Knowledge Representation for Inf. Sc.",3,"Yes"]
[null,"NWI-I00152","Research Methods",3,"Yes"]
[null,"NWI-IMI003","Philosophy and Ethics for CS and IS",3,"Yes"]
[null,"Choose exactly 1 of the following 2 courses"]
[null,"NWI-IMI004","Software Development Entrepreneurship",6,"No"]
[null,"NWI-IMC021","System Development Management",6,"No"]
[null,null,"Sum:",{"$f":"SUMIFS(D292:D298,H292:H298,\"\",E292:E298,\"Yes\")+SUM(H292:H298)","v":12}]
[]
[null,"Elective course package (18 EC) (Choose exactly 1 of the 18 EC course packages)",null,null,null,"Replaced by:"]
[null,"Course package: Security & Privacy (18 EC)"]
[null,"Course code","Course name","EC","Taken?","Course code","Course name","EC","EX"]
[null,"NWI-I0053","Security in Organisations",6,"No"]
[null,"NWI-IMC006","Law in Cyberspace",6,"No"]
[null,"MAN-MST020","Strategic Scenarios in Business Models",6,"No"]
[null,"Course package: Aligning Business and IT (18 EC)"]
[null,"NWI-I00041","Information Retrieval",6,"No"]
[null,"Choose exactly 2 of the following 3 courses"]
[null,"MAN-MOD002A","Organisational Change",6,"No"]
[null,"MAN-MOD001","Organisation Design",6,"No"]
[null,"MAN-MOD008","Intervention in Organisations",6,"No"]
[null,null,"Sum:",{"$f":"SUMIFS(D304:D312,H304:H312,\"\",E304:E312,\"Yes\")+SUM(H304:H312)","v":0}]
[]
[null,"Free Electives (6 EC) (Courses that do not overlap with the rest of the programme)"]
[null,"Course code","Course name","EC","Comments:",null,null,null,"EX"]
[]
[]
[]
[]
[null,null,"Sum:",{"$f":"SUM(D317:D320)","v":0}]
[]
[null,null,"Master Thesis Information Sciences (NWI-IMK013) (18 EC)"]
[null,"Title:","(Leave empty if unknown)"]
[null,"Supervisor:","(Leave empty if unknown)"]
[null,"Department:","(Leave empty if unknown)"]
[null,"2nd Supervisor:","(Leave empty if unknown)"]
[null,"Department:","(Leave empty if unknown)"]
[null,null,"Total:",18]
[]
[null,"Total EC (60)",null,{"$f":"D299+D313+D321+D329","v":30}]
[]
[null,"Honours ('judicium') is awarded  based on the nominal number of 60 ec required for the examination."]
[]
[null,"Extra curricular courses (above 120 EC); these will be mentioned on your course list"]
[null,"Course code","Course name","EC","Comments:",null,null,null,"EX"]
[]
[]
[]
[]
[]
[]
[]
[]
[]
[]
[null,null,"Sum:",{"$f":"SUM(D337:D346)","v":0}]
[]
[null,"Total EC overall:",null,{"$f":"D331+D347","v":30}]
[null,"#pagebreakinhetwit"]
[null,"Comments:"]
[]
[]
[]
[]
[]
[]
[]
["#scheidingswoordmeteenhashtag"]

{"sheet":"Selections","index":2,"n_rows":9,"n_cols":9,"rows_kept":9,"cut":false,"hidden":true,"merged":[]}
[]
[]
[null,null,null,null,null,"Yes","Cohort","Specialisatie","Exemption"]
[null,null,null,null,null,"No","Please Select…","Please Select…"]
[null,null,null,null,null,null,2014,null,"X"]
[null,null,null,null,null,null,2015]
[null,null,null,null,null,null,2016]
[null,null,null,null,null,null,"2017"]
[null,null,null,null,null,null,"2018"]